fUSD/lending_fUSD_20241207
["ID","MTS","AMOUNT","RATE_DAILY","PERIOD"]
[344587942,1733583035397,-500.0,0.00015068,2]
[344587943,1733583035406,-500.0,0.00015068,2]
[344587944,1733583035415,-500.0,0.00015068,2]
[344587945,1733583035424,-275.68190069,0.00015068,2]
[344587946,1733583035438,-500.0,0.00015068,2]
[344587947,1733583035448,-500.0,0.00015068,2]
[344587948,1733583035458,-500.0,0.00015068,2]
[344587949,1733583035467,-500.0,0.00015068,2]
[344587950,1733583035477,-500.0,0.00015068,2]
[344587951,1733583035486,-500.0,0.00015068,2]
[344587952,1733583035495,-500.0,0.00015068,2]
[344587953,1733583035505,-500.0,0.00015068,2]
[344587954,1733583035514,-503.49970512,0.00015068,2]
[344587955,1733583035523,-500.0,0.00015068,2]
[344587956,1733583035532,-500.69467819,0.00015068,2]
[344587957,1733583035542,-500.0,0.00015068,2]
[344587958,1733583035551,-602.16134749,0.00015068,2]
[344587959,1733583035560,-500.0,0.00015068,2]
[344587960,1733583035570,-500.80438592,0.00015068,2]
[344587961,1733583035579,-500.0,0.00015068,2]
[344587962,1733583035588,-500.0,0.00015068,2]
[344587963,1733583035598,-500.0,0.00015068,2]
[344587964,1733583035609,-500.0,0.00015068,2]
[344587965,1733583035618,-500.69842886,0.00015068,2]
[344587966,1733583035629,-500.0,0.00015068,2]
[344587967,1733583035638,-500.35335364,0.00015068,2]
[344587968,1733583035647,-500.0,0.00015068,2]
[344587969,1733583035656,-500.0,0.00015068,2]
[344587970,1733583035666,-500.0,0.00015068,2]
[344587971,1733583035675,-500.0,0.00015068,2]
[344587972,1733583035684,-500.0,0.00015068,2]
[344587973,1733583035694,-500.0,0.00015068,2]
[344587974,1733583035704,-310.71146903,0.00015068,2]
[344587975,1733583035713,-500.0,0.00015068,2]
[344587976,1733583035723,-500.0,0.00015068,2]
[344587977,1733583035732,-500.0,0.00015068,2]
[344587978,1733583035742,-500.0,0.00015068,2]
[344587979,1733583035751,-500.0,0.00015068,2]
[344587980,1733583035760,-574.83,0.00015068,2]
[344587981,1733583035770,-500.0,0.00015068,2]
[344587982,1733583035780,-500.0,0.00015068,2]
[344587983,1733583035790,-500.0,0.00015068,2]
[344587984,1733583035799,-500.0,0.00015068,2]
[344587985,1733583035809,-500.0,0.00015068,2]
[344587986,1733583035819,-500.0,0.00015068,2]
[344587987,1733583035829,-500.0,0.00015068,2]
[344587988,1733583035838,-500.0,0.00015068,2]
[344587989,1733583035848,-500.0,0.00015068,2]
[344587990,1733583035858,-500.0,0.00015068,2]
[344587991,1733583035867,-613.94,0.00015068,2]
[344587992,1733583035876,-500.0,0.00015068,2]
[344587993,1733583035889,-500.0,0.00015068,2]
[344587994,1733583035898,-534.8,0.00015068,2]
[344587995,1733583035907,-500.0,0.00015068,2]
[344587996,1733583035917,-440.80417097,0.00015068,2]
[344587997,1733583035927,-500.0,0.00015068,2]
[344587998,1733583035936,-500.0,0.00015068,2]
[344587999,1733583035946,-500.0,0.00015068,2]
[344588000,1733583035955,-500.0,0.00015068,2]
[344588001,1733583035965,-556.30178196,0.00015068,2]
[344588002,1733583035975,-500.0,0.00015068,2]
[344588003,1733583035984,-500.0,0.00015068,2]
[344588004,1733583035994,-500.0,0.00015068,2]
[344588005,1733583036004,-355.24,0.00015068,2]
[344588006,1733583036014,-500.0,0.00015068,2]
[344588007,1733583036024,-500.0,0.00015068,2]
[344588008,1733583036034,-500.0,0.00015068,2]
[344588009,1733583036044,-500.0,0.00015068,2]
[344588010,1733583036054,-500.0,0.00015068,2]
[344588011,1733583036064,-500.0,0.00015068,2]
[344588012,1733583036073,-500.0,0.00015068,2]
[344588013,1733583036083,-500.0,0.00015068,2]
[344588014,1733583036093,-500.0,0.00015068,2]
[344588015,1733583036103,-500.0,0.00015068,2]
[344588016,1733583036112,-500.0,0.00015068,2]
[344588017,1733583036121,-500.0,0.00015068,2]
[344588018,1733583036133,-500.0,0.00015068,2]
[344588019,1733583036142,-500.0,0.00015068,2]
[344588020,1733583036151,-500.0,0.00015068,2]
[344588021,1733583036161,-584.87456355,0.00015068,2]
[344588022,1733583036170,-500.0,0.00015068,2]
[344588023,1733583036180,-500.0,0.00015068,2]
[344588024,1733583036189,-500.0,0.00015068,2]
[344588025,1733583036199,-498.69292853,0.00015068,2]
[344588026,1733583036208,-238.47578991,0.00015068,2]
[344588027,1733583036218,-500.0,0.00015068,2]
[344588028,1733583036227,-421.42386615,0.00015068,2]
[344588029,1733583036237,-500.0,0.00015068,2]
[344588030,1733583036246,-500.0,0.00015068,2]
[344588031,1733583036256,-554.91,0.00015068,2]
[344588032,1733583036265,-373.35153392,0.00015068,2]
[344588033,1733583036286,-181.55846608,0.00015068,2]
[344588034,1733583036296,-554.91,0.00015068,2]
[344588035,1733583036306,-500.0,0.00015068,2]
[344588036,1733583036316,-554.91,0.00015068,2]
[344588037,1733583036326,-500.0,0.00015068,2]
[344588038,1733583036335,-282.0714948,0.00015068,2]
[344588042,1733583037828,-217.9285052,0.00015068,2]
[344588043,1733583037838,-500.0,0.00015068,2]
[344588044,1733583037848,-204.1947599,0.00015068,2]
[344588045,1733583037860,-295.8052401,0.00015068,2]
[344588046,1733583037869,-500.0,0.00015068,2]
[344588047,1733583037880,-500.0,0.00015068,2]
[344588048,1733583037892,-500.0,0.00015068,2]
[344588049,1733583037904,-28.5384998,0.00015068,2]
[344588050,1733583038108,-359.12,0.00015068,2]
[344588051,1733583038120,-115.84827145,0.00015068,2]
[344588052,1733583038129,-500.0,0.00015068,2]
[344588053,1733583038145,-500.0,0.00015068,2]
[344588054,1733583038155,-500.0,0.00015068,2]
[344588055,1733583038164,-500.0,0.00015068,2]
[344588057,1733583038174,-500.0,0.00015068,2]
[344588058,1733583038183,-311.86811036,0.00015068,2]
[344588060,1733583038192,-500.0,0.00015068,2]
[344588062,1733583038202,-500.0,0.00015068,2]
[344588064,1733583038212,-500.0,0.00015068,2]
[344588065,1733583038222,-503.33277163,0.00015068,2]
[344588066,1733583038231,-505.20384826,0.00015068,2]
[344588067,1733583038241,-500.0,0.00015068,2]
[344588068,1733583038252,-500.0,0.00015068,2]
[344588069,1733583038261,-500.0,0.00015068,2]
[344588070,1733583038271,-500.0,0.00015068,2]
[344588071,1733583038280,-500.0,0.00015068,2]
[344588072,1733583038290,-500.0,0.00015068,2]
[344588073,1733583038301,-500.0,0.00015068,2]
[344588074,1733583038311,-500.0,0.00015068,2]
[344588075,1733583038321,-500.0,0.00015068,2]
[344588076,1733583038331,-500.0,0.00015068,2]
[344588077,1733583038340,-503.25218415,0.00015068,2]
[344588078,1733583038351,-500.0,0.00015068,2]
[344588079,1733583038361,-520.44,0.00015068,2]
[344588080,1733583038370,-500.0,0.00015068,2]
[344588081,1733583038380,-500.0,0.00015068,2]
[344588082,1733583038389,-500.0,0.00015068,2]
[344588083,1733583038399,-500.0,0.00015068,2]
[344588084,1733583038408,-500.0,0.00015068,2]
[344588085,1733583038418,-500.0,0.00015068,2]
[344588086,1733583038428,-500.0,0.00015068,2]
[344588087,1733583038440,-500.0,0.00015068,2]
[344588088,1733583038450,-500.0,0.00015068,2]
[344588089,1733583038461,-500.0,0.00015068,2]
[344588090,1733583038470,-500.0,0.00015068,2]
[344588091,1733583038479,-332.07181965,0.00015068,2]
[344588092,1733583038489,-500.0,0.00015068,2]
[344588093,1733583038499,-500.0,0.00015068,2]
[344588094,1733583038508,-500.0,0.00015068,2]
[344588095,1733583038518,-500.0,0.00015068,2]
[344588096,1733583038528,-500.0,0.00015068,2]
[344588097,1733583038539,-500.0,0.00015068,2]
[344588098,1733583038549,-501.23178525,0.00015068,2]
[344588099,1733583038559,-501.86976276,0.00015068,2]
[344588100,1733583038568,-500.0,0.00015068,2]
[344588101,1733583038578,-501.74828243,0.00015068,2]
[344588102,1733583038588,-500.0,0.00015068,2]
[344588103,1733583038599,-500.0,0.00015068,2]
[344588104,1733583038609,-500.0,0.00015068,2]
[344588105,1733583038619,-500.0,0.00015068,2]
[344588106,1733583038630,-616.14666839,0.00015068,2]
[344588107,1733583038640,-500.0,0.00015068,2]
[344588108,1733583038650,-500.0,0.00015068,2]
[344588109,1733583038660,-500.0,0.00015068,2]
[344588110,1733583038670,-500.0,0.00015068,2]
[344588111,1733583038680,-500.0,0.00015068,2]
[344588112,1733583038690,-500.48690884,0.00015068,2]
[344588113,1733583038700,-500.0,0.00015068,2]
[344588114,1733583038710,-500.0,0.00015068,2]
[344588115,1733583038720,-500.0,0.00015068,2]
[344588116,1733583038729,-492.38826781,0.00015068,2]
[344588117,1733583038738,-503.76030076,0.00015068,2]
[344588118,1733583038748,-500.0,0.00015068,2]
[344588119,1733583038758,-372.01551986,0.00015068,2]
[344588120,1733583038767,-500.0,0.00015068,2]
[344588121,1733583038777,-500.0,0.00015068,2]
[344588122,1733583038786,-500.0,0.00015068,2]
[344588123,1733583038796,-500.0,0.00015068,2]
[344588124,1733583038806,-500.0,0.00015068,2]
[344588125,1733583038816,-500.0,0.00015068,2]
[344588126,1733583038828,-500.0,0.00015068,2]
[344588127,1733583038837,-386.94278473,0.00015068,2]
[344588128,1733583038846,-501.94148361,0.00015068,2]
[344588129,1733583038855,-500.0,0.00015068,2]
[344588130,1733583038865,-500.0,0.00015068,2]
[344588131,1733583038875,-500.0,0.00015068,2]
[344588132,1733583038886,-500.0,0.00015068,2]
[344588133,1733583038896,-500.0,0.00015068,2]
[344588134,1733583038906,-500.0,0.00015068,2]
[344588135,1733583038916,-503.37369714,0.00015068,2]
[344588136,1733583038925,-500.0,0.00015068,2]
[344588137,1733583038935,-500.0,0.00015068,2]
[344588138,1733583038944,-500.0,0.00015068,2]
[344588139,1733583038953,-500.0,0.00015068,2]
[344588140,1733583038962,-280.42357389,0.00015068,2]
[344588141,1733583038972,-500.0,0.00015068,2]
[344588142,1733583038982,-500.0,0.00015068,2]
[344588143,1733583038991,-501.35156672,0.00015068,2]
[344588144,1733583039001,-500.0,0.00015068,2]
[344588145,1733583039011,-500.0,0.00015068,2]
[344588146,1733583039021,-500.0,0.00015068,2]
[344588147,1733583039030,-500.0,0.00015068,2]
[344588148,1733583039040,-244.20139231,0.00015068,2]
[344588149,1733583039056,-255.79860769,0.00015068,2]
[344588150,1733583039065,-500.0,0.00015068,2]
[344588151,1733583039075,-500.0,0.00015068,2]
[344588152,1733583039084,-501.04959247,0.00015068,2]
[344588153,1733583039094,-500.0,0.00015068,2]
[344588154,1733583039104,-500.0,0.00015068,2]
[344588155,1733583039114,-375.69653116,0.00015068,2]
[344588156,1733583039124,-500.0,0.00015068,2]
[344588157,1733583039146,-514.24180896,0.00015068,2]
[344588158,1733583039160,-500.0,0.00015068,2]
[344588159,1733583039170,-500.0,0.00015068,2]
[344588160,1733583039179,-500.0,0.00015068,2]
[344588161,1733583039189,-500.0,0.00015068,2]
[344588162,1733583039199,-284.85015203,0.00015068,2]
[344588163,1733583039208,-500.0,0.00015068,2]
[344588164,1733583039219,-500.0,0.00015068,2]
[344588165,1733583039228,-500.0,0.00015068,2]
[344588166,1733583039238,-500.0,0.00015068,2]
[344588167,1733583039248,-500.0,0.00015068,2]
[344588168,1733583039257,-500.0,0.00015068,2]
[344588169,1733583039267,-500.0,0.00015068,2]
[344588170,1733583039276,-138.87188769,0.00015068,2]
[344588171,1733583039289,-361.12811231,0.00015068,2]
[344588172,1733583039299,-295.46392225,0.00015068,2]
[344588173,1733583039310,-204.53607775,0.00015068,2]
[344588174,1733583039320,-500.0,0.00015068,2]
[344588175,1733583039329,-500.0,0.00015068,2]
[344588176,1733583039338,-465.3450509,0.00015068,2]
[344588177,1733583039348,-500.0,0.00015068,2]
[344588178,1733583039358,-628.72168795,0.00015068,2]
[344588179,1733583039368,-500.0,0.00015068,2]
[344588180,1733583039384,-500.0,0.00015068,2]
[344588181,1733583039394,-30.95346489,0.00015068,2]
[344588182,1733583039406,-254.17293522,0.00015068,2]
[344588183,1733583039415,-254.29133865,0.00015068,2]
[344588184,1733583039424,-500.0,0.00015068,2]
[344588185,1733583039434,-481.35828477,0.00015068,2]
[344588186,1733583039446,-380.1697892,0.00015068,2]
[344588187,1733583039455,-500.0,0.00015068,2]
[344588188,1733583039465,-500.0,0.00015068,2]
[344588189,1733583039474,-500.0,0.00015068,2]
[344588190,1733583039485,-500.0,0.00015068,2]
[344588191,1733583039495,-503.80629584,0.00015068,2]
[344588192,1733583039505,-500.0,0.00015068,2]
[344588193,1733583039515,-500.0,0.00015068,2]
[344588194,1733583039524,-500.0,0.00015068,2]
[344588195,1733583039534,-81.19144597,0.00015068,2]
[344588196,1733583039546,-418.80855403,0.00015068,2]
[344588197,1733583039555,-500.0,0.00015068,2]
[344588198,1733583039565,-500.0,0.00015068,2]
[344588199,1733583039574,-500.0,0.00015068,2]
[344588200,1733583039584,-500.0,0.00015068,2]
[344588201,1733583039593,-500.68867133,0.00015068,2]
[344588202,1733583039602,-504.2870172,0.00015068,2]
[344588203,1733583039612,-500.0,0.00015068,2]
[344588204,1733583039621,-500.0,0.00015068,2]
[344588205,1733583039631,-501.37314162,0.00015068,2]
[344588206,1733583039641,-382.86328884,0.00015068,2]
[344588207,1733583039650,-505.18432653,0.00015068,2]
[344588208,1733583039659,-500.0,0.00015068,2]
[344588209,1733583039669,-388.17398632,0.00015068,2]
[344588210,1733583039680,-111.82601368,0.00015068,2]
[344588211,1733583039691,-500.0,0.00015068,2]
[344588212,1733583039700,-414.99398632,0.00015068,2]
[344588213,1733583039713,-85.00601368,0.00015068,2]
[344588214,1733583039723,-472.9042847,0.00015068,2]
[344588215,1733583039734,-27.0957153,0.00015068,2]
[344588216,1733583039744,-304.11220142,0.00015068,2]
[344588217,1733583039755,-66.66054295,0.00015068,2]
[344588218,1733583039764,-500.0,0.00015068,2]
[344588219,1733583039774,-500.0,0.00015068,2]
[344588220,1733583039783,-500.0,0.00015068,2]
[344588221,1733583039792,-500.0,0.00015068,2]
[344588222,1733583039801,-500.0,0.00015068,2]
[344588223,1733583039810,-500.0,0.00015068,2]
[344588224,1733583039820,-500.0,0.00015068,2]
[344588225,1733583039829,-500.0,0.00015068,2]
[344588226,1733583039838,-500.0,0.00015068,2]
[344588227,1733583039847,-500.5907388,0.00015068,2]
[344588228,1733583039857,-500.0,0.00015068,2]
[344588229,1733583039867,-500.0,0.00015068,2]
[344588230,1733583039876,-99.77447425,0.00015068,2]
[344588231,1733583039891,-400.22552575,0.00015068,2]
[344588232,1733583039901,-500.0,0.00015068,2]
[344588233,1733583039911,-500.0,0.00015068,2]
[344588234,1733583039920,-500.0,0.00015068,2]
[344588235,1733583039930,-500.0,0.00015068,2]
[344588236,1733583039939,-500.96243686,0.00015068,2]
[344588237,1733583039948,-500.0,0.00015068,2]
[344588238,1733583039957,-500.0,0.00015068,2]
[344588239,1733583039967,-503.10726783,0.00015068,2]
[344588240,1733583039976,-620.36583696,0.00015068,2]
[344588241,1733583039987,-500.0,0.00015068,2]
[344588242,1733583039996,-500.0,0.00015068,2]
[344588243,1733583040006,-500.0,0.00015068,2]
[344588244,1733583040016,-500.0,0.00015068,2]
[344588245,1733583040025,-500.0,0.00015068,2]
[344588246,1733583040034,-532.71,0.00015068,2]
[344588247,1733583040043,-306.96,0.00015068,2]
[344588248,1733583040052,-500.0,0.00015068,2]
[344588249,1733583040062,-500.0,0.00015068,2]
[344588250,1733583040071,-504.29473732,0.00015068,2]
[344588251,1733583040080,-500.0,0.00015068,2]
[344588252,1733583040090,-500.0,0.00015068,2]
[344588253,1733583040099,-500.0,0.00015068,2]
[344588254,1733583040109,-500.0,0.00015068,2]
[344588255,1733583040118,-500.0,0.00015068,2]
[344588256,1733583040127,-500.0,0.00015068,2]
[344588258,1733583040139,-508.71247158,0.00015068,2]
[344588259,1733583040147,-500.0,0.00015068,2]
[344588260,1733583040157,-500.0,0.00015068,2]
[344588261,1733583040166,-500.0,0.00015068,2]
[344588262,1733583040175,-519.94402958,0.00015068,2]
[344588263,1733583040184,-500.0,0.00015068,2]
[344588264,1733583040194,-500.0,0.00015068,2]
[344588265,1733583040203,-500.0,0.00015068,2]
[344588266,1733583040213,-500.0,0.00015068,2]
[344588267,1733583040222,-531.44662904,0.00015068,2]
[344588268,1733583040232,-500.0,0.00015068,2]
[344588269,1733583040242,-500.0,0.00015068,2]
[344588270,1733583040251,-500.0,0.00015068,2]
[344588271,1733583040260,-171.77,0.00015068,2]
[344588272,1733583040270,-509.89956365,0.00015068,2]
[344588273,1733583040279,-1052.83,0.00015068,2]
[344588274,1733583040288,-1052.83,0.00015068,2]
[344588275,1733583040298,-500.0,0.00015068,2]
[344588276,1733583040308,-500.0,0.00015068,2]
[344588277,1733583040318,-495.91216254,0.00015068,2]
[344588278,1733583040328,-500.0,0.00015068,2]
[344588279,1733583040337,-500.0,0.00015068,2]
[344588280,1733583040347,-500.0,0.00015068,2]
[344588281,1733583040356,-141.8889813,0.00015068,2]
[344588282,1733583040368,-360.57852829,0.00015068,2]
[344588283,1733583040378,-40.40032171,0.00015068,2]
[344588284,1733583040391,-459.59967829,0.00015068,2]
[344588285,1733583040400,-500.0,0.00015068,2]
[344588286,1733583040409,-419.74731631,0.00015068,2]
[344588287,1733583040539,-80.25268369,0.00015068,2]
[344588288,1733583040548,-500.0,0.00015068,2]
[344588289,1733583040557,-417.72007742,0.00015068,2]
[344588290,1733583040568,-83.04420928,0.00015068,2]
[344588291,1733583040577,-519.40837054,0.00015068,2]
[344588292,1733583040629,-126.27135491,0.00015068,2]
[344588293,1733583040640,-300.0,0.00015068,2]
[344588294,1733583040649,-500.0,0.00015068,2]
[344588295,1733583040658,-500.0,0.00015068,2]
[344588296,1733583040667,-500.0,0.00015068,2]
[344588297,1733583040676,-500.0,0.00015068,2]
[344588298,1733583040685,-500.0,0.00015068,2]
[344588299,1733583040694,-500.0,0.00015068,2]
[344588300,1733583040703,-500.0,0.00015068,2]
[344588301,1733583040712,-500.74952899,0.00015068,2]
[344588302,1733583040721,-500.0,0.00015068,2]
[344588303,1733583040731,-500.0,0.00015068,2]
[344588304,1733583040739,-500.0,0.00015068,2]
[344588305,1733583040749,-499.71449786,0.00015068,2]
[344588306,1733583040758,-500.0,0.00015068,2]
[344588307,1733583040767,-500.0,0.00015068,2]
[344588308,1733583040775,-10.95902824,0.00015068,2]
[344588309,1733583040787,-297.23447495,0.00015068,2]
[344588310,1733583040798,-293.15649681,0.00015068,2]
[344588311,1733583040807,-257.56350719,0.00015068,2]
[344588312,1733583040819,-242.43649281,0.00015068,2]
[344588313,1733583040828,-9.90350619,0.00015068,2]
[344588314,1733583040840,-490.09649381,0.00015068,2]
[344588315,1733583040849,-500.0,0.00015068,2]
[344588316,1733583040858,-500.0,0.00015068,2]
[344588317,1733583040867,-500.0,0.00015068,2]
[344588318,1733583040877,-209.90350619,0.00015068,2]
[344588319,1733583040890,-409.55776548,0.00015068,2]
[344588320,1733583040899,-500.0,0.00015068,2]
[344588321,1733583040908,-500.0,0.00015068,2]
[344588322,1733583040917,-640.76,0.00015068,2]
[344588323,1733583040926,-525.75,0.00015068,2]
[344588324,1733583040935,-500.82881832,0.00015068,2]
[344588325,1733583040944,-500.0,0.00015068,2]
[344588326,1733583040953,-501.03804172,0.00015068,2]
[344588327,1733583040962,-500.0,0.00015068,2]
[344588328,1733583040971,-500.0,0.00015068,2]
[344588329,1733583040980,-505.13663749,0.00015068,2]
[344588330,1733583040989,-570.95,0.00015068,2]
[344588331,1733583040998,-501.95042855,0.00015068,2]
[344588332,1733583041007,-500.0,0.00015068,2]
[344588333,1733583041016,-500.0,0.00015068,2]
[344588334,1733583041025,-500.0,0.00015068,2]
[344588335,1733583041034,-500.0,0.00015068,2]
[344588336,1733583041044,-501.20033207,0.00015068,2]
[344588337,1733583041206,-500.0,0.00015068,2]
[344588338,1733583041217,-298.01,0.00015068,2]
[344588339,1733583041226,-500.0,0.00015068,2]
[344588340,1733583041236,-500.0,0.00015068,2]
[344588341,1733583041245,-500.0,0.00015068,2]
[344588342,1733583041255,-500.0,0.00015068,2]
[344588343,1733583041265,-502.36347245,0.00015068,2]
[344588344,1733583041274,-500.0,0.00015068,2]
[344588345,1733583041284,-500.0,0.00015068,2]
[344588346,1733583041293,-500.86138874,0.00015068,2]
[344588347,1733583041303,-2921.57,0.00015068,2]
[344588348,1733583041312,-2921.57,0.00015068,2]
[344588349,1733583041321,-500.0,0.00015068,2]
[344588350,1733583041330,-501.22371765,0.00015068,2]
[344588351,1733583041340,-500.0,0.00015068,2]
[344588352,1733583041349,-500.0,0.00015068,2]
[344588353,1733583041358,-500.0,0.00015068,2]
[344588354,1733583041367,-154.41864286,0.00015068,2]
[344588355,1733583041377,-500.0,0.00015068,2]
[344588356,1733583041388,-500.0,0.00015068,2]
[344588357,1733583041397,-500.0,0.00015068,2]
[344588358,1733583041406,-500.0,0.00015068,2]
[344588359,1733583041416,-500.0,0.00015068,2]
[344588360,1733583041425,-500.0,0.00015068,2]
[344588361,1733583041436,-1091.14,0.00015068,2]
[344588362,1733583041446,-1091.14,0.00015068,2]
[344588363,1733583041456,-500.0,0.00015068,2]
[344588364,1733583041465,-500.0,0.00015068,2]
[344588365,1733583041474,-500.0,0.00015068,2]
[344588366,1733583041486,-500.0,0.00015068,2]
[344588367,1733583041495,-275.57715467,0.00015068,2]
[344588368,1733583041507,-255.90284533,0.00015068,2]
[344588369,1733583041517,-500.0,0.00015068,2]
[344588370,1733583041526,-500.0,0.00015068,2]
[344588371,1733583041535,-185.10680314,0.00015068,2]
[344588372,1733583041544,-500.0,0.00015068,2]
[344588373,1733583041553,-7.13968621,0.00015068,2]
[344588374,1733583041565,-492.86031379,0.00015068,2]
[344588375,1733583041574,-500.0,0.00015068,2]
[344588376,1733583041583,-500.0,0.00015068,2]
[344588377,1733583041592,-500.0,0.00015068,2]
[344588378,1733583041615,-77.24797791,0.00015068,2]
[344588382,1733583042880,-422.75202209,0.00015068,2]
[344588383,1733583042892,-500.0,0.00015068,2]
[344588384,1733583042901,-497.89982108,0.00015068,2]
[344588385,1733583042911,-500.0,0.00015068,2]
[344588386,1733583042920,-500.0,0.00015068,2]
[344588387,1733583042929,-500.0,0.00015068,2]
[344588388,1733583042939,-500.0,0.00015068,2]
[344588389,1733583042948,-500.0,0.00015068,2]
[344588390,1733583042957,-500.0,0.00015068,2]
[344588391,1733583042966,-500.0,0.00015068,2]
[344588392,1733583042975,-500.0,0.00015068,2]
[344588393,1733583042984,-500.0,0.00015068,2]
[344588394,1733583042993,-500.51675805,0.00015068,2]
[344588395,1733583043002,-500.0,0.00015068,2]
[344588396,1733583043012,-500.0,0.00015068,2]
[344588397,1733583043020,-500.0,0.00015068,2]
[344588398,1733583043029,-500.0,0.00015068,2]
[344588399,1733583043038,-503.10957052,0.00015068,2]
[344588400,1733583043047,-500.0,0.00015068,2]
[344588401,1733583043056,-500.0,0.00015068,2]
[344588402,1733583043065,-500.0,0.00015068,2]
[344588403,1733583043075,-500.0,0.00015068,2]
[344588404,1733583043083,-500.0,0.00015068,2]
[344588405,1733583043092,-500.0,0.00015068,2]
[344588406,1733583043102,-500.0,0.00015068,2]
[344588407,1733583043112,-500.0,0.00015068,2]
[344588408,1733583043121,-500.0,0.00015068,2]
[344588409,1733583043130,-500.0,0.00015068,2]
[344588410,1733583043141,-500.0,0.00015068,2]
[344588411,1733583043150,-500.0,0.00015068,2]
[344588412,1733583043159,-500.0,0.00015068,2]
[344588413,1733583043168,-500.0,0.00015068,2]
[344588414,1733583043178,-500.0,0.00015068,2]
[344588415,1733583043188,-500.0,0.00015068,2]
[344588416,1733583043198,-500.0,0.00015068,2]
[344588417,1733583043208,-500.0,0.00015068,2]
[344588418,1733583043217,-500.0,0.00015068,2]
[344588419,1733583043227,-500.90437377,0.00015068,2]
[344588420,1733583043236,-500.0,0.00015068,2]
[344588421,1733583043246,-500.0,0.00015068,2]
[344588422,1733583043256,-500.55371408,0.00015068,2]
[344588423,1733583043266,-500.0,0.00015068,2]
[344588424,1733583043275,-500.0,0.00015068,2]
[344588425,1733583043285,-539.83,0.00015068,2]
[344588426,1733583043294,-500.0,0.00015068,2]
[344588427,1733583043304,-500.0,0.00015068,2]
[344588428,1733583043313,-500.0,0.00015068,2]
[344588429,1733583043325,-175.51112285,0.00015068,2]
[344588430,1733583043353,-373.46604204,0.00015068,2]
[344588431,1733583043362,-358.79822679,0.00015068,2]
[344588432,1733583043371,-500.0,0.00015068,2]
[344588433,1733583043381,-500.0,0.00015068,2]
[344588434,1733583043394,-500.0,0.00015068,2]
[344588435,1733583043404,-24.56745325,0.00015068,2]
[344588436,1733583043416,-475.43254675,0.00015068,2]
[344588437,1733583043426,-500.0,0.00015068,2]
[344588438,1733583043439,-500.0,0.00015068,2]
[344588439,1733583043448,-500.0,0.00015068,2]
[344588440,1733583043458,-500.0,0.00015068,2]
[344588441,1733583043467,-500.0,0.00015068,2]
[344588442,1733583043478,-538.90459351,0.00015068,2]
[344588443,1733583043487,-125.72460189,0.00015068,2]
[344588444,1733583043609,-285.12640011,0.00015068,2]
[344588445,1733583043620,-89.148998,0.00015068,2]
[344588446,1733583043630,-500.0,0.00015068,2]
[344588447,1733583043641,-127.58160201,0.00015068,2]
[344588448,1733583043698,-372.41839799,0.00015068,2]
[344588449,1733583043707,-500.33534708,0.00015068,2]
[344588450,1733583043716,-69.13720493,0.00015068,2]
[344588451,1733583043727,-342.76102408,0.00015068,2]
[344588452,1733583043736,-500.0,0.00015068,2]